[Event "45th FIDE Olympiad 2024"]
[Site "Budapest"]
[Date "2024.09.18"]
[Round "7.10"]
[White "Nguyen, Ngoc Truong Son"]
[Black "Tabatabaei, M. Amin"]
[Result "1/2-1/2"]
[ECO "D35"]
[WhiteElo "2633"]
[BlackElo "2714"]
[Annotator "TA"]
[PlyCount "60"]
[EventDate "2024.09.05"]
[EventType "team-tourn"]
[EventCountry "HUN"]
[SourceTitle "playchess.com"]
[Source "ChessBase"]
[SourceQuality "1"]
[WhiteTeam "Vietnam"]
[BlackTeam "Iran"]
[WhiteTeamCountry "VIE"]
[BlackTeamCountry "IRI"]
[TimeControl "40/5400+30:1800+30"]

{[%evp 24,60,0,0,0,0,0,0,-2,-10,-11,-17,-22,-27,-27,-25,-13,-13,-16,-13,0,0,27,37,27,35,28,31,39,14,19,29,24,28,20,14,13,9,13]} 1. d4 {[%emt 0:00:12]} d5 {[%emt 0:00:11]} 2. c4 {[%emt 0:00:37]} e6 {[%emt 0:00:07]} 3. Nc3 {[%emt 0:00:12]} Be7 {[%emt 0:00:06]} 4. cxd5 {[%emt 0:01:02]} exd5 {[%emt 0:00:06]} 5. Bf4 {[%emt 0:01:40]} c6 {[%emt 0:00:07]} 6. e3 {[%emt 0:02:57]} Bf5 {[%emt 0:00:10]} 7. Bd3 {[%emt 0:06:57]} Bxd3 {[%emt 0:00:17]} 8. Qxd3 {[%emt 0:00:05]} Nf6 {[%emt 0:00:11]} 9. Nf3 {[%emt 0:02:07]} O-O {[%emt 0:00:33]} 10. O-O {[%emt 0:00:18]} Re8 {[%emt 0:01:04]} 11. h3 {[%emt 0:00:57]} Nbd7 {[%emt 0:00:40]} 12. Rab1 {[%emt 0:02:56]} a5 {[%emt 0:00:26]} 13. Qc2 {[%emt 0:00:51]} Bf8 {[%emt 0:14:43]} 14. a3 {[%emt 0:08:46]} h6 {[%emt 0:09:04]} 15. Rfe1 {[%emt 0:14:46]} Rc8 {[%emt 0:01:34]} 16. Rbd1 {[%emt 0:07:45]} b5 {[%emt 0:05:34]} 17. Ne5 {[%emt 0:03:16]} Nxe5 {[%emt 0:08:10]} 18. Bxe5 {[%emt 0:06:48]} Nd7 {[%emt 0:01:31]} 19. Bg3 {[%emt 0:11:16]} Nb6 {[%emt 0:00:47]} 20. a4 {[%emt 0:00:25]} Bb4 {[%emt 0:02:10] Threatens to win with ...Nxa4.} 21. Re2 $1 {[%emt 0:00:14]} Bxc3 {[%emt 0:06:01]} 22. Qxc3 {[%emt 0:00:08]} Nxa4 {[%emt 0:00:05]} 23. Qe1 {[%emt 0:00:16]} Ra8 {[%emt 0:31:38]} 24. Ra1 {[%emt 0:00:29]} Nb6 {[%emt 0:00:06][%cal Ba4b6,Bb6d7,Bd7c5][%mdl 32]} 25. Rxa5 {[%emt 0:00:13]} Nd7 {[%emt 0:00:03]} 26. Ra1 {[%emt 0:04:02]} c5 {[%emt 0:02:49]} 27. Rxa8 {[%emt 0:01:31]} Qxa8 {[%emt 0:00:02]} 28. dxc5 {[%emt 0:00:57]} Nxc5 {[%emt 0:00:01]} 29. Qb4 {[%emt 0:03:42]} Qa4 {[%emt 0:06:08]} 30. Qxa4 {[%emt 0:00:12]} bxa4 {[%emt 0:00:07] Weighted Error Value: White=0.03 (flawless) /Black=0.04 (flawless) .  Inaccurate:     	---       	Black=1      OK:         	White=6     	Black=7      Best:        	White=1     	---        Strong:       	White=1     	---} 1/2-1/2

[Event "45th FIDE Olympiad 2024"]
[Site "Budapest"]
[Date "2024.09.18"]
[Round "7.10"]
[White "Kibrom, Weldegebriel Beraki"]
[Black "Capella, Rurik"]
[Result "1-0"]
[WhiteElo "1885"]
[BlackElo "1971"]
[PlyCount "118"]
[EventDate "2024.09.05"]
[EventType "team-tourn"]
[EventCountry "HUN"]
[WhiteTeam "Eritrea"]
[BlackTeam "Netherlands Antilles"]
[WhiteTeamCountry "ERI"]
[BlackTeamCountry "AHO"]
[TimeControl "40/5400+30:1800+30"]

1. d4 d6 2. Nf3 g6 3. c4 Bg7 4. Nc3 Nf6 5. e4 O-O 6. Be2 e5 7. d5 Na6 8. Bg5 h6 9. Bh4 Qe8 10. Nd2 Nxe4 11. Ndxe4 f5 12. f3 g5 13. Bf2 fxe4 14. Nxe4 Bf5 15. O-O g4 16. Rc1 Qg6 17. Ng3 gxf3 18. Bxf3 Bd3 19. Re1 Rf4 20. Bh5 Qh7 21. b3 Nb4 22. Qd2 Nc2 23. Red1 Raf8 24. Qxd3 Qxd3 25. Rxd3 Rxf2 26. Bf3 Nb4 27. Re3 Rxa2 28. Nh5 Bf6 29. Be4 Bg5 30. Rg3 Kh8 31. Rd1 Re2 32. Bf3 Re3 33. Rg4 Rxb3 34. h4 Be3+ 35. Kh2 Nd3 36. Rg6 Bf4+ 37. g3 Rb2+ 38. Bg2 Nf2 39. Re1 Nd3 40. Rf1 e4 41. Nxf4 e3 42. Rxh6+ Kg7 43. Rg6+ Kh7 44. Re6 Ne5 45. Kh3 e2 46. Re1 Rb3 47. Be4+ Kg8 48. Kg2 Re3 49. Rxe2 Rxe2+ 50. Nxe2 Nxc4 51. Nd4 Ne5 52. h5 a5 53. Nf5 Ng4 54. Rg6+ Kf7 55. Rxg4 Kf6 56. Nd4 Rh8 57. Rf4+ Ke7 58. g4 a4 59. Nb5 Ra8 1-0

[Event "45th FIDE Olympiad 2024"]
[Site "Budapest"]
[Date "2024.09.18"]
[Round "7.11"]
[White "Daneshvar, Bardiya"]
[Black "Le, Tuan Minh"]
[Result "1/2-1/2"]
[ECO "A13"]
[WhiteElo "2598"]
[BlackElo "2564"]
[Annotator "TA"]
[PlyCount "165"]
[EventDate "2024.09.05"]
[EventType "team-tourn"]
[EventCountry "HUN"]
[SourceTitle "playchess.com"]
[Source "ChessBase"]
[SourceQuality "1"]
[WhiteTeam "Iran"]
[BlackTeam "Vietnam"]
[WhiteTeamCountry "IRI"]
[BlackTeamCountry "VIE"]
[TimeControl "40/5400+30:1800+30"]

{[%evp 78,165,64,58,60,40,39,41,42,42,119,117,141,126,149,150,148,162,172,174,170,170,165,156,149,123,116,116,104,100,104,95,158,115,119,114,144,143,229,50,173,173,203,209,206,179,237,239,233,233,237,231,226,118,125,105,89,0,0,0,107,103,107,101,91,106,105,75,111,108,115,0,0,0,44,0,0,0,0,0,0,0,0,0,0,0,0,0,0,0]} 1. c4 {[%emt 0:00:04]} e6 {[%emt 0:00:21]} 2. g3 {[%emt 0:00:29]} d5 {[%emt 0:00:15]} 3. Bg2 {[%emt 0:00:05]} dxc4 {[%emt 0:00:12]} 4. Qa4+ {[%emt 0:00:12]} c6 {[%emt 0:00:04]} 5. Qxc4 {[%emt 0:00:08]} b5 {[%emt 0:00:08]} 6. Qc2 {[%emt 0:01:35] A13: English Opening: 1...e6.} Nf6 {[%emt 0:00:08]} 7. a4 {[%emt 0:00:10]} b4 {[%emt 0:02:02]} 8. b3 $146 {[%emt 0:04:40]} ({Predecessor:} 8. d3 Bb7 9. Nd2 Nbd7 10. Nc4 a5 11. Bf4 Nc5 12. Nf3 Nd5 13. Bd2 b3 14. Qd1 {1-0 Gombocz,F (2191)-Ragnarsson,J (1916) EU-ch 21st Reykjavik 2021 (4)}) 8... Be7 {[%emt 0:03:15]} 9. Bb2 {[%emt 0:02:00]} Bb7 {[%emt 0:02:45]} 10. d3 {[%emt 0:03:51]} O-O {[%emt 0:05:54]} 11. Nd2 {[%emt 0:00:30]} Qd7 {[%emt 0:06:25]} 12. Ngf3 {[%emt 0:03:15]} c5 {[%emt 0:01:13]} 13. Ne5 {[%emt 0:07:16]} Qc7 {[%emt 0:01:26]} 14. Bxb7 {[%emt 0:03:47]} Qxb7 {[%emt 0:00:04]} 15. O-O {[%emt 0:00:05]} Nfd7 {[%emt 0:02:53]} 16. Rac1 {[%emt 0:04:04]} Nxe5 {[%emt 0:01:38]} 17. Bxe5 {[%emt 0:00:02]} Nc6 {[%emt 0:00:05]} 18. Bb2 {[%emt 0:02:04]} Rac8 {[%emt 0:01:18]} 19. Qc4 {[%emt 0:02:51]} Rfd8 {[%emt 0:11:03]} 20. Qg4 {[%emt 0:04:34]} Bf8 {[%emt 0:02:25]} 21. Nc4 {[%emt 0:03:01]} Qe7 {[%emt 0:07:22]} 22. h4 {[%emt 0:02:48]} g6 {[%emt 0:09:58]} 23. Qg5 {[%emt 0:08:06]} Bg7 {[%emt 0:07:25]} 24. Qxe7 {[%emt 0:06:25]} Nxe7 {[%emt 0:00:10]} 25. Rc2 {[%emt 0:00:03]} Nc6 {[%emt 0:04:48]} 26. Rfc1 {[%emt 0:03:25]} f5 {[%emt 0:03:06]} 27. f4 {[%emt 0:01:45]} Bxb2 {[%emt 0:06:34]} 28. Rxb2 {[%emt 0:00:57]} Kg7 {[%emt 0:01:05]} 29. Kf2 {[%emt 0:00:31]} Kf6 {[%emt 0:06:04]} 30. Nd2 {[%emt 0:00:07]} Rd5 {[%emt 0:00:41]} 31. Nf3 {[%emt 0:03:11]} h6 {[%emt 0:01:26]} 32. Rbc2 {[%emt 0:02:52]} Na5 {[%emt 0:00:09]} 33. Rb1 {[%emt 0:01:32]} Nc6 {[%emt 0:00:11]} 34. Rbc1 {[%emt 0:03:33]} Na5 {[%emt 0:00:06]} 35. Rb2 {[%emt 0:00:08]} Nc6 {[%emt 0:00:01]} 36. Rc4 {[%emt 0:01:03]} Na5 {[%emt 0:01:01]} 37. Rcc2 {[%emt 0:00:19]} Nc6 {[%emt 0:00:44]} 38. Rc1 {[%emt 0:00:11]} Kg7 {[%emt 0:03:26]} 39. h5 {[%emt 0:09:00]} gxh5 {[%emt 0:00:46]} 40. Rh1 {[%emt 0:00:21]} Kg6 {[%emt 0:03:54]} 41. Nh4+ {[%emt 0:35:34]} Kg7 {[%emt 0:30:25]} 42. Ng2 {[%emt 0:02:36]} Kg6 {[%emt 0:01:35]} 43. Rbb1 {[%emt 0:01:48]} Kg7 {[%emt 0:00:00]} (43... Nb8 $14) 44. Ne3 $16 {[%emt 0:00:00]} Rd7 {[%emt 0:00:00]} 45. Rxh5 {[%emt 0:00:00]} Ne7 {[%emt 0:00:00]} 46. Rbh1 {[%emt 0:00:00]} Rh8 {[%emt 0:00:00]} 47. Rc1 {[%emt 0:00:00]} Rc7 {[%emt 0:00:00]} 48. g4 {[%emt 0:00:00]} Rf8 {[%emt 0:00:23]} 49. Rg1 {[%emt 0:00:00]} fxg4 {[%emt 0:01:13]} 50. Nxg4 {[%emt 0:00:00]} Rxf4+ {[%emt 0:01:39]} 51. Ke3 {[%emt 0:00:00]} Rd4 {[%emt 0:01:24]} 52. Kd2 {[%emt 0:00:00]} Rd5 {[%emt 0:01:59]} 53. Nxh6+ {[%emt 0:00:00]} Kf8 {[%emt 0:00:27]} 54. Rh4 {[%emt 0:00:00]} Rd4 {[%emt 0:01:32]} (54... Nc6 $142) 55. Rh3 {[%emt 0:00:53]} Rf4 {[%emt 0:00:38]} 56. Rg5 {[%emt 0:02:42]} Ke8 {[%emt 0:01:47]} 57. Ng4 {[%emt 0:00:06]} Nc6 {[%emt 0:02:06]} (57... Kd7 $16 {keeps fighting.} 58. Ne5+ Kc8) 58. Ne5 $2 {[%emt 0:02:35]} ({Better is} 58. e3 $18 Rf1 59. Rxc5) 58... Na5 {[%emt 0:01:15]} ({Black should play} 58... Nxe5 $14 59. Rxe5 Ke7) 59. Kc2 $1 $18 {[%emt 0:02:32]} Nb7 {[%emt 0:00:23]} 60. Rh6 {[%emt 0:01:36]} Nd8 {[%emt 0:00:22]} 61. Ng6 {[%emt 0:01:34]} Rf5 {[%emt 0:00:43]} (61... Rd4 $142 62. Ne5 Rf4) 62. Rh8+ $18 {[%emt 0:02:19]} Kd7 {[%emt 0:00:00]} 63. Ne5+ {[%emt 0:00:42]} Kd6 {[%emt 0:00:29]} 64. Nc4+ {[%emt 0:01:49]} ({Weaker is} 64. Rxd8+ Kxe5 65. Rg3 Rh5 $16) 64... Kd7 {[%emt 0:01:03]} 65. Rxf5 {[%emt 0:01:20]} (65. Rgg8 $18 Nf7 66. Rh7) 65... exf5 $16 {[%emt 0:00:01]} 66. Ne3 {[%emt 0:00:01]} Nc6 {[%emt 0:00:48]} 67. Rh7+ {[%emt 0:01:27]} Kd8 $1 {[%emt 0:00:04]} 68. Rh8+ {[%emt 0:00:04]} Kd7 {[%emt 0:00:01]} 69. Nxf5 {[%emt 0:01:19]} Ke6 {[%emt 0:00:01]} 70. Rh5 $1 {[%emt 0:00:21]} Rf7 {[%emt 0:01:21]} 71. e4 $1 {[%emt 0:00:13]} Rf6 {[%emt 0:00:20]} 72. Rg5 {[%emt 0:02:00]} Ke5 {[%emt 0:00:54] [#]} 73. Kd2 $1 {[%emt 0:01:54]} Kf4 {[%emt 0:00:13] [#]} 74. Rg1 {[%emt 0:00:08]} (74. Rg7 $1 $16) 74... Na5 $1 $11 {[%emt 0:00:17]} 75. Kc2 {[%emt 0:00:03]} Rf8 {[%emt 0:00:57]} 76. Rf1+ {[%emt 0:00:42]} Ke5 {[%emt 0:00:04]} 77. Rf2 {[%emt 0:00:18]} Nc6 {[%emt 0:00:18]} 78. Rh2 {[%emt 0:00:12]} Rg8 {[%emt 0:00:14]} 79. Kb2 {[%emt 0:00:54]} Rg1 {[%emt 0:00:22]} 80. Rc2 {[%emt 0:00:26]} Kf4 {[%emt 0:00:23]} 81. Rf2+ {[%emt 0:00:38]} (81. Rxc5 $5 Ne5 $8 82. Rd5 $11) 81... Ke5 {[%emt 0:00:32]} 82. Rc2 {[%emt 0:00:09]} Kf4 {[%emt 0:00:05]} 83. Rf2+ {[%emt 0:00:48]} 1/2-1/2

[Event "45th FIDE Olympiad 2024"]
[Site "Budapest"]
[Date "2024.09.18"]
[Round "7.11"]
[White "Van Opstal, Rurik"]
[Black "Lilay, Weldu Gebru"]
[Result "1-0"]
[WhiteElo "2006"]
[BlackElo "1977"]
[PlyCount "63"]
[EventDate "2024.09.05"]
[EventType "team-tourn"]
[EventCountry "HUN"]
[WhiteTeam "Netherlands Antilles"]
[BlackTeam "Eritrea"]
[WhiteTeamCountry "AHO"]
[BlackTeamCountry "ERI"]
[TimeControl "40/5400+30:1800+30"]

1. e4 c5 2. Nf3 Nc6 3. d4 cxd4 4. Nxd4 Nxd4 5. Qxd4 e6 6. Nc3 d6 7. Be3 Bd7 8. O-O-O Qa5 9. Bc4 Nf6 10. f4 e5 11. Qd3 a6 12. h3 Be7 13. g4 Bc6 14. g5 Nd7 15. h4 Rc8 16. f5 b5 17. Bb3 b4 18. Nd5 Bxd5 19. Bxd5 Nc5 20. Bxc5 Qxc5 21. Qb3 f6 22. Bf7+ Kf8 23. Rd2 a5 24. Qe6 fxg5 25. Kb1 gxh4 26. Ka1 a4 27. Bh5 g6 28. fxg6 hxg6 29. Qxg6 Rxh5 30. Rf1+ Bf6 31. Rxf6+ Ke7 32. Qg7+ 1-0

[Event "45th FIDE Olympiad 2024"]
[Site "Budapest"]
[Date "2024.09.18"]
[Round "7.12"]
[White "Banh, Gia Huy"]
[Black "Idani, Pouya"]
[Result "0-1"]
[ECO "D02"]
[WhiteElo "2425"]
[BlackElo "2599"]
[Annotator "TA"]
[PlyCount "74"]
[EventDate "2024.09.05"]
[EventType "team-tourn"]
[EventCountry "HUN"]
[SourceTitle "playchess.com"]
[Source "ChessBase"]
[SourceQuality "1"]
[WhiteTeam "Vietnam"]
[BlackTeam "Iran"]
[WhiteTeamCountry "VIE"]
[BlackTeamCountry "IRI"]
[TimeControl "40/5400+30:1800+30"]

{[%evp 9,74,0,13,13,27,0,4,0,13,9,16,16,7,5,20,17,27,19,37,30,41,33,34,33,46,39,50,28,30,35,35,27,44,41,46,40,38,35,53,30,37,0,4,5,4,0,0,-174,-185,-183,-194,-170,-119,-119,-97,-61,-93,-769,-754,-29975,-29976,-29975,-29977,-29977,-29977,-29961,-1930]} 1. d4 {[%emt 0:00:14]} d5 {[%emt 0:00:05]} 2. Nf3 {[%emt 0:00:04]} Nf6 {[%emt 0:00:13]} 3. Bf4 {[%emt 0:00:07]} c5 {[%emt 0:00:10]} 4. e3 {[%emt 0:00:08]} Nc6 {[%emt 0:00:04]} 5. Nbd2 {[%emt 0:00:05]} cxd4 {[%emt 0:02:42]} 6. exd4 {[%emt 0:01:10]} a6 {[%emt 0:00:03]} 7. Nb3 {[%emt 0:03:28]} Bg4 {[%emt 0:04:33]} 8. h3 {[%emt 0:03:48] The position is equal.} Bxf3 {[%emt 0:05:21]} 9. Qxf3 {[%emt 0:00:27]} e6 {[%emt 0:00:05]} 10. c3 {[%emt 0:05:09]} Bd6 {[%emt 0:05:37]} 11. Bd3 {[%emt 0:03:16]} Bxf4 {[%emt 0:02:27]} 12. Qxf4 {[%emt 0:00:03]} O-O {[%emt 0:01:34]} 13. O-O {[%emt 0:00:07]} Nd7 {[%emt 0:02:17]} 14. Rfe1 {[%emt 0:04:59]} Re8 {[%emt 0:05:53]} 15. Re3 {[%emt 0:04:27]} Rc8 {[%emt 0:02:18]} 16. Rae1 {[%emt 0:07:21]} Ne7 {[%emt 0:09:39]} 17. Rf3 {[%emt 0:21:17]} Rf8 {[%emt 0:05:38]} 18. Rg3 {[%emt 0:12:19]} Ng6 {[%emt 0:00:24]} 19. Bxg6 {[%emt 0:03:41]} hxg6 {[%emt 0:00:06]} 20. h4 {[%emt 0:00:24][%cal Bh3h4,Bh4h5][%mdl 32]} Nf6 {[%emt 0:06:29]} 21. Rh3 {[%emt 0:01:28]} Qc7 {[%emt 0:01:25]} 22. Qg5 {[%emt 0:03:44]} Ne4 {[%emt 0:07:10]} 23. Qe3 {[%emt 0:00:46]} Rce8 {[%emt 0:02:19]} 24. h5 {[%emt 0:05:28]} g5 {[%emt 0:00:42]} 25. f3 {[%emt 0:07:03]} (25. h6 $5 f5 26. Nc5 $14) 25... g4 $1 {[%emt 0:00:09]} 26. fxg4 {[%emt 0:02:33]} f5 {[%emt 0:00:32]} 27. Nd2 {[%emt 0:04:21]} fxg4 {[%emt 0:07:03]} 28. Rh4 $2 {[%emt 0:05:04] [#]} (28. Rh2 $1 $11) 28... Nxd2 $1 $19 {[%emt 0:00:10]} 29. Qxd2 {[%emt 0:00:02]} Qg3 {[%emt 0:00:10]} 30. Rh1 {[%emt 0:00:03]} e5 {[%emt 0:08:08]} (30... Rf3 $19 {And now ...Ref8 would win.} 31. h6 Ref8) 31. Re3 $17 {[%emt 0:00:28]} Qf4 {[%emt 0:02:39] aiming for ...exd4. Black is much more active.} 32. Qe2 {[%emt 0:01:06]} Qg5 {[%emt 0:03:43] Dodges Rh4} 33. dxe5 {[%emt 0:01:48][%mdl 8192] [#] Now White is beyond hope.} (33. Rxe5 $2 Qc1+ 34. Kh2 g3+ 35. Kxg3 Rxe5 (35... Qxh1 $2 36. Rxe8 Rxe8 37. Qxe8+ Kh7 38. Qg6+ Kh8 39. h6 $18) 36. Qxe5 Qxh1 $19) (33. h6 $17) 33... Rf5 $1 $19 {[%emt 0:00:16]} 34. Rg3 {[%emt 0:00:30]} Qc1+ {[%emt 0:00:18] Black mates.} (34... Rfxe5 35. Qxg4 Qc1+ 36. Kh2 $17) 35. Kh2 {[%emt 0:00:07]} Rxh5+ {[%emt 0:00:09]} 36. Rh3 {[%emt 0:00:13]} Qf4+ {[%emt 0:01:05]} (36... Rhxe5 37. Qxg4 Qg5 38. Qxg5 Rxg5 39. Rb1 $19) 37. Kg1 {[%emt 0:00:01]} Rexe5 {[%emt 0:01:08] Weighted Error Value: White=0.46/Black=0.08 (flawless) .  Loses game:     	White=2     	---        Mistake:       	---       	Black=1      Inaccurate:     	White=2     	---        OK:         	White=10    	Black=12     Best:        	White=1     	---        Strong:       	---       	Black=3} (37... g3 $142 38. Rxg3 Qc1+ (38... Rhxe5 39. Qg4 $15) (38... Rexe5 $2 39. Qxh5 Qc1+ 40. Qd1 $19) 39. Kf2 Rxh1 (39... Qxh1 $2 40. Qg4 $19) 40. Rh3 Rf8+ 41. Rf3 Rxf3+ 42. Kxf3 Rf1+ 43. Qxf1 Qxf1+ 44. Ke3 Qxg2 45. e6 Qe4+ (45... Qxb2 {leads to mate.} 46. Kd4 Qxa2 47. Ke5 Qc4 48. Kd6 Qxc3 49. Kxd5 Kf8 50. Kd6 Ke8 51. Kd5 Ke7 52. Ke4 Kxe6 53. Kf4 Qd3 54. Kg4 Qe3 55. Kh5 Qf4 56. Kg6 Qh6#) 46. Kf2 Qxe6 47. a4 g5 48. b4 g4 49. a5 Qf5+ 50. Ke3 g3 51. Kd4 g2 52. Kc5 g1=Q+ (52... g1=B+ {is a self mate.} 53. Kd6 Bh2+ 54. Kc5 Bc7 55. b5 Qe4 56. bxa6 Qc4#) 53. Kd6 Qh2+ 54. Kc5 Qc7+ 55. Kd4 Qe4#) 0-1

[Event "45th FIDE Olympiad 2024"]
[Site "Budapest"]
[Date "2024.09.18"]
[Round "7.12"]
[White "Samuel, Merhawi Gebrehiwet"]
[Black "Van Delden, Johan"]
[Result "1-0"]
[WhiteElo "1788"]
[BlackElo "1909"]
[Annotator "RC"]
[PlyCount "103"]
[EventDate "2024.09.05"]
[EventType "team-tourn"]
[EventCountry "HUN"]
[WhiteTeam "Eritrea"]
[BlackTeam "Netherlands Antilles"]
[WhiteTeamCountry "ERI"]
[BlackTeamCountry "AHO"]
[TimeControl "40/5400+30:1800+30"]

1. d4 d5 2. Nf3 Nf6 3. g3 e6 4. Bg2 Be7 5. O-O O-O 6. c4 c6 7. b3 Nbd7 8. Bb2 Qc7 9. Nbd2 Ne4 10. Nxe4 dxe4 11. Nd2 f5 12. e3 c5 13. Qc2 b6 14. f3 exf3 15. Nxf3 Bb7 16. Rad1 Rae8 17. Ne1 Bg5 18. Qd3 e5 19. Bxb7 Qxb7 20. d5 e4 21. Qe2 Qc7 22. Ng2 Ne5 23. Bxe5 Qxe5 24. Nf4 Bxf4 25. gxf4 Qf6 26. Kh1 Kh8 27. Rg1 Rg8 28. Rg5 Rd8 29. Rdg1 g6 30. Qf2 Rd7 31. Qg3 Rdg7 32. Qe1 Rc8 33. R5g2 Kg8 34. Qa1 Kf7 35. Qxf6+ Kxf6 36. h4 Rcg8 37. Kh2 h6 38. Kh3 g5 39. fxg5+ hxg5 40. Rxg5 Rxg5 41. Rxg5 Re8 42. Kg3 Ke5 43. h5 Rh8 44. Rg6 f4+ 45. exf4+ Kd4 46. h6 Kd3 47. Re6 Rg8+ 48. Kf2 Rg4 49. d6 Rxf4+ 50. Ke1 Rf8 51. d7 Ke3 52. Re8 1-0

[Event "45th FIDE Olympiad 2024"]
[Site "Budapest"]
[Date "2024.09.18"]
[Round "7.13"]
[White "Abdusattorov, Nodirbek"]
[Black "Volokitin, Andrei"]
[Result "1-0"]
[ECO "B87"]
[WhiteElo "2766"]
[BlackElo "2660"]
[Annotator "TA"]
[PlyCount "59"]
[EventDate "2024.09.05"]
[EventType "team-tourn"]
[EventCountry "HUN"]
[SourceTitle "playchess.com"]
[Source "ChessBase"]
[SourceQuality "1"]
[WhiteTeam "Uzbekistan"]
[BlackTeam "Ukraine"]
[WhiteTeamCountry "UZB"]
[BlackTeamCountry "UKR"]
[TimeControl "40/5400+30:1800+30"]

{[%evp 19,59,-2,-3,-11,10,16,28,27,36,31,67,80,69,70,62,80,70,68,77,65,70,84,68,77,65,75,72,75,72,55,63,58,73,75,90,97,153,158,154,153,792,792]} 1. e4 {[%emt 0:00:35]} c5 {[%emt 0:00:17]} 2. Nf3 {[%emt 0:00:12]} d6 {[%emt 0:00:07]} 3. d4 {[%emt 0:00:27]} cxd4 {[%emt 0:00:05]} 4. Nxd4 {[%emt 0:00:05]} Nf6 {[%emt 0:00:05]} 5. Nc3 {[%emt 0:00:10]} a6 {[%emt 0:00:06]} 6. Bc4 {[%emt 0:00:44]} e6 {[%emt 0:00:17]} 7. Be3 {[%emt 0:00:10]} Be7 {[%emt 0:08:20]} 8. Bb3 {[%emt 0:00:10]} b5 {[%emt 0:02:12]} 9. a3 {[%emt 0:00:13]} O-O {[%emt 0:02:18]} 10. Qe2 {[%emt 0:00:22]} Bb7 {[%emt 0:01:25]} 11. f3 {[%emt 0:00:19]} Nbd7 {[%emt 0:02:17]} 12. O-O-O {[%emt 0:01:33]} Nc5 {[%emt 0:00:34]} 13. Ba2 {[%emt 0:00:27][%cal Oe4e5] White has an edge.} Qa5 {[%emt 0:04:08]} 14. Qe1 {[%emt 0:01:23][%cal Oc3d5]} (14. Bd2 {simplifies} Qb6 15. g4 Rfc8 16. g5) 14... b4 {[%emt 0:36:25]} 15. axb4 {[%emt 0:00:16]} Qxb4 {[%emt 0:00:07] [#]} 16. Nd5 $1 {[%emt 0:00:57]} Nxd5 {[%emt 0:01:13]} (16... exd5 $2 17. Qxb4 a5 18. Qa3 $18) 17. exd5 {[%emt 0:00:10]} Qa4 {[%emt 0:02:26]} 18. Kb1 {[%emt 0:00:07]} Bxd5 {[%emt 0:00:20]} 19. Bxd5 {[%emt 0:00:04]} exd5 {[%emt 0:00:05]} 20. Nf5 $1 {[%emt 0:00:02][%csl LRd5,LRe7]} Bf6 {[%emt 0:00:09][%cal Of6b2] White must now prevent ...Bxb2!} 21. Bd4 {[%emt 0:00:02] Active counter play!} Rfe8 {[%emt 0:12:59]} 22. Qc3 $36 {[%emt 0:00:17][%mdl 2048] White is in control. Chess con chili.} Nd7 {[%emt 0:00:54]} 23. b3 {[%emt 0:20:28]} Qa3 {[%emt 0:03:18]} 24. Bxf6 {[%emt 0:03:20]} (24. Rhe1 $5 Qc5 25. Bxc5 Bxc3 26. Rxe8+ (26. Nxd6 $2 {loses.} Rxe1 27. Rxe1 Bxe1 $19) 26... Rxe8 27. Bxd6 $14) 24... Nxf6 {[%emt 0:00:05] [#]} 25. Rxd5 $1 {[%emt 0:00:13]} a5 {[%emt 0:07:00][%cal Ba6a5,Ba5a4][%mdl 32] [#]} (25... Rac8 26. Ra5) 26. Rhd1 $1 {[%emt 0:01:11][%cal Og2g4]} a4 {[%emt 0:04:17] Threatens to win with ...axb3.} (26... h5 27. Rb5) 27. Ra5 {[%emt 0:00:27]} d5 {[%emt 0:11:00]} (27... Rxa5 $142 28. Qxa5 Qc5 29. Qxc5 (29. Qxa4 $2 {is the wrong capture.} Qxf5 30. Rxd6 Re1+ 31. Kb2 Qe5+ 32. Qd4 Qxh2 $19) 29... dxc5) 28. Rd4 $16 {[%emt 0:01:50]} Rac8 {[%emt 0:00:31]} 29. Qd2 {[%emt 0:00:22]} ({But not} 29. Rdxa4 $2 Qxa4 $19) 29... Rc4 $2 {[%emt 0:01:29]} (29... Re5 $16) 30. bxc4 {[%emt 0:00:26] White took control after the opening.   Weighted Error Value: White=0.01 (flawless) /Black=0.15 (very precise) .  Loses game:     	---       	Black=1      Mistake:       	---       	Black=1      Inaccurate:     	---       	Black=1      OK:         	White=10    	Black=6      Best:        	White=3     	---        Strong:       	White=1     	---        Brilliant:      	White=1     	---} 1-0

[Event "45th FIDE Olympiad 2024"]
[Site "Budapest"]
[Date "2024.09.18"]
[Round "7.13"]
[White "Cogan, Nicolas"]
[Black "Khan, Taffin"]
[Result "1-0"]
[WhiteElo "2112"]
[BlackElo "2066"]
[PlyCount "131"]
[EventDate "2024.09.05"]
[EventType "team-tourn"]
[EventCountry "HUN"]
[WhiteTeam "Cote d/^Ivoire"]
[BlackTeam "Guyana"]
[BlackTeamCountry "GUY"]
[TimeControl "40/5400+30:1800+30"]

1. d4 e6 2. c4 Bb4+ 3. Bd2 a5 4. a3 Bxd2+ 5. Qxd2 f5 6. Nc3 Nf6 7. e3 b6 8. Bd3 Bb7 9. f3 O-O 10. Nge2 Qe7 11. O-O c5 12. d5 Kh8 13. e4 d6 14. Nf4 fxe4 15. fxe4 Bc8 16. h3 e5 17. Nfe2 Na6 18. Ng3 g6 19. Rf3 Bd7 20. Raf1 Ng8 21. Bc2 Nc7 22. Ba4 Rxf3 23. Rxf3 Kg7 24. Bxd7 Qxd7 25. Qf2 Qe7 26. Nd1 Rf8 27. Ne3 Rxf3 28. Qxf3 Nh6 29. Ng4 Nf7 30. Qb3 h5 31. Nf2 Na8 32. Qb5 Qc7 33. Qe8 Qd8 34. Qc6 Kf8 35. Nd1 Qb8 36. Qd7 Qc7 37. Qe6 Kg7 38. Ne3 Nh6 39. Qe8 h4 40. Ngf1 Qb7 41. Qd8 Nf7 42. Qxh4 Qd7 43. g4 Qd8 44. Qxd8 Nxd8 45. h4 Nf7 46. Kf2 Nc7 47. Nd2 Ne8 48. Nb1 Nf6 49. Nc3 Kf8 50. Kf3 Ke7 51. Na4 Nd7 52. g5 Kd8 53. Kg4 Kc7 54. h5 Nf8 55. Nc3 Kd7 56. Na4 Kc7 57. Nc3 Kd7 58. Nf1 Kc7 59. Nd2 Kd7 60. Nf3 Nh8 61. Nh4 Ke7 62. Na4 Kf7 63. Nxb6 gxh5+ 64. Kxh5 Nhg6 65. Nxg6 Nxg6 66. Nc8 1-0